Cogmind - Beta 16.1 @@@ ROGUE MODE // 2026.01.03 @ 21:19:55 Player: cptwinky Result: Destroyed by G-47 Trooper with Particle Gun Performance ------------- Evolutions (0) 0 Regions Visited (2) 400 Robots Destroyed (16) 80 Value Destroyed (318) 318 Prototype IDs (2) 40 Alien Tech Used (0) 0 Bonus (7) 7 TOTAL SCORE: 845 Bonus ------- Follower Combat Kills 7 Cogmind --------- Core Integrity 0/250 Matter 78/300 Energy 99/100 System Corruption 3% Temperature Cool (9) Movement Core (50) Location -10/Mines Parts ------- > --- POWER (1) -------- (None) > --- PROPULSION (2) --- (None) > --- UTILITY (2) ------ (None) > --- WEAPON (2) ------- (None) > --- INVENTORY (5) ---- Cooled Ion Engine Machine Analyzer Thief Drone Bay (3/3) Mining Laser Botcube Peak State ------------ > --- POWER ------------ Cooled Ion Engine > --- PROPULSION ------- Light Treads Light Treads > --- UTILITY ---------- Small Storage Unit Thief Drone Bay > --- WEAPON ----------- Heavy Assault Rifle Heavy Assault Rifle > --- INVENTORY -------- Cooled Ion Engine Compact Wheel Machine Analyzer Seismic Detector Heavy Assault Rifle Rocket Launcher Mining Laser Botcube [Rating: 19] Favorites ----------- Power Cooled Ion Engine Engine Cooled Ion Engine Propulsion Light Treads Treads Light Treads Wheel Compact Wheel Utility Small Storage Unit Device Seismic Detector Storage Small Storage Unit Weapon Heavy Assault Rifle Energy Gun Medium Laser Ballistic Gun Heavy Assault Rifle Launcher Rocket Launcher Build | -11 -10 -10 ------- Run | Yrd Mat Min Slots Evolved . | . . . Power . | . . . Propulsion . | . . . Utility . | . . . Weapon . | . . . Parts Attached 14 | 6 3 5 Power 2 | 1 1 . Engine 2 | 1 1 . Core . | . . . Reactor . | . . . Propulsion 3 | 2 . 1 Treads 2 | 2 . . Leg . | . . . Wheel 1 | . . 1 Hover . | . . . Flight . | . . . Utility 3 | 1 . 2 Device 2 | . . 2 Storage 1 | 1 . . Processor . | . . . Hackware . | . . . Protection . | . . . Artifact . | . . . Weapon 6 | 2 2 2 Energy Gun 1 | 1 . . Energy Cannon . | . . . Ballistic Gun 4 | 1 2 1 Ballistic Cannon . | . . . Launcher 1 | . . 1 Special Weapon . | . . . Impact Weapon . | . . . Slashing Weapon . | . . . Piercing Weapon . | . . . Special Melee Weapon . | . . . Unidentified Prototypes 2 | . 1 1 Parts Lost 9 | . . 9 Power 1 | . . 1 Propulsion 3 | . . 3 Utility 1 | . . 1 Weapon 4 | . . 4 Highest Loss Streak 6 | . . 6 To Critical Strikes . | . . . Average Backups 6 | 4 7 6 Power . | . 1 1 Propulsion 2 | 1 3 1 Utility 1 | . 1 1 Weapon 1 | . 2 2 Tool/Special . | . . . Unused Backups 7 | . 2 5 Power 2 | . 1 1 Propulsion 2 | . . 2 Utility 1 | . . 1 Weapon 2 | . 1 1 Tool/Special . | . . . Average Slot Usage (%) 81 | . 84 80 Engine 12 | . 13 12 Treads 25 | . 28 23 Device 1 | . . 2 Storage 13 | . 14 12 Ballistic Gun 26 | . 25 26 Peak Build Rating 19 | 7 11 19 Average Rating 9 | 5 10 10 On Entrance 6 | . 7 11 Avg Prop Armor Cover (%) 5 | . . 5 Naked Turns 4 | . . 4 Heaviest Build 20 | 12 19 20 Greatest Support 40 | 40 40 40 Greatest Overweight (x) 1 | . . 1 Average Overweight (x) . | . . . Largest Inventory Capacity 8 | 8 8 8 Average Capacity 7 | 7 8 7 Most Carried 8 | 8 8 8 Average Carried 7 | 5 7 7 Final Capacity 8 | 8 8 5 Final Carried 8 | 8 8 5 Class Distribution -------------------- 100% | Mutant Dominant Class ---------------- Mutant | -10/Materials Mutant | -10/Mines Resources | -11 -10 -10 ----------- Run | Yrd Mat Min Matter Collected 429 | 293 . 136 Remotely . | . . . Salvage Created 418 | 99 . 319 Parts 22 | 7 . 15 Haulers Intercepted . | . . . Recyclers Shooed . | . . . Parts Field Recycled . | . . . Retrieved Matter . | . . . Parts Self-Destructed . | . . . Prevented . | . . . Parts Restored . | . . . Kills | -11 -10 -10 ------- Run | Yrd Mat Min Combat Hostiles Destroyed 24 | . . 24 Guns 8 | . . 8 AOE 16 | . . 16 Classes Destroyed 7 | 2 . 5 Worker 1 | . . 1 Tunneler 4 | 3 . 1 Recycler 1 | 1 . . Mechanic 1 | . . 1 Swarmer 3 | . . 3 Grunt 6 | . . 6 Assembled 15 | . . 15 Best Kill Streak 17 | 3 . 17 Combat Bots Only 17 | . . 17 Max Kills in Single Turn 4 | 1 . 4 Gunslinging . | . . . Exploded 4 | . . 4 Melee . | . . . Uniques/NPCs Destroyed . | . . . Combat | -11 -10 -10 -------- Run | Yrd Mat Min Hostile Shots Fired 116 | . 4 112 Missed 36 | . 1 35 Hits 80 | . 3 77 Melee 5 | . . 5 Projectile 75 | . 3 72 AOE 4 | . . 4 Critical Strikes 1 | . . 1 Damage Taken 1168 | . 41 1127 Core 256 | . . 256 Absorbed by Shields . | . . . Core Remaining (%) 100 | 100 . . Volleys Fired 56 | 11 1 44 Largest 2 | 2 2 2 Hottest 70 | 70 70 46 Shots Fired 103 | 22 2 79 Gun 95 | 22 2 71 Cannon . | . . . Launcher 8 | . . 8 Special . | . . . Kinetic 83 | 11 1 71 Thermal 12 | 11 1 . Explosive 8 | . . 8 Electromagnetic . | . . . Robot Hit Streak 12 | 3 . 12 Robot Miss Streak 7 | 2 2 7 Penetration Max . | . . . Secondary Targets . | . . . Shots Hit Robots 55 | 13 . 42 Core Hits 50 | 5 . 45 Critical Kills . | . . . Critical Parts Destroyed . | . . . Critical Strikes 2 | 2 . . Burn 2 | 2 . . Melee Attacks . | . . . Impact . | . . . Slashing . | . . . Piercing . | . . . Sneak Attacks . | . . . Combat Hostiles . | . . . Follow-up Attacks . | . . . Damage Inflicted 2016 | 167 9 1840 Guns 752 | 167 . 585 Cannons . | . . . Explosions 1249 | . . 1249 Melee . | . . . Ramming 15 | . 9 6 Kinetic 665 | 80 . 585 Thermal 87 | 87 . . Explosive 1249 | . . 1249 Electromagnetic . | . . . Impact . | . . . Slashing . | . . . Piercing . | . . . Highest Corruption 3 | . . 3 Average Corruption 3 | . . 3 Corruption Purged . | . . . Corruption Blocked . | . . . Effects 1 | . . 1 Weapon Failures 1 | . . 1 Overload Shots . | . . . Overflow Damage 61 | . . 61 Projectiles . | . . . Explosions 61 | . . 61 Melee . | . . . Knockbacks . | . . . Impact . | . . . Kinetic . | . . . Secondary . | . . . Self-Inflicted Damage 116 | . . 116 Shots 3 | . . 3 Rammed 3 | . 2 1 Targets Rammed 3 | . 2 1 Kicked . | . . . Crushed . | . . . Highest Temperature 54 | 54 9 13 Average Temperature 14 | 19 6 3 Received Heat Transfer 202 | . 24 178 Siege Activations . | . . . Martial Activations . | . . . Shielding Activations . | . . . Robots Disrupted . | . . . Combat Hostiles . | . . . Robots Corrupted . | . . . Combat Hostiles . | . . . Parts Fried . | . . . Impact Corruptions . | . . . Robots Melted . | . . . Combat Hostiles . | . . . Parts Melted 1 | 1 . . Heat Transferred 407 | 407 . . Parts Sabotaged . | . . . Parts Stolen . | . . . Parts Stripped . | . . . Power Chain Reactions . | . . . Alert | -11 -10 -10 ------- Run | Yrd Mat Min Maximum Alert Level . | . . . Low Security (%) 100 | 100 100 100 Level 1 . | . . . Level 2 . | . . . Level 3 . | . . . Level 4 . | . . . Level 5 . | . . . High Security . | . . . Max Security . | . . . Peak Influence 158 | 10 15 158 Initial 5 | . . 5 Average 41 | 1 . 69 Influence Increases 455 | 20 15 420 Destroy 0b10 Robot/C 200 | . . 200 Destroy 0b10 Robot/NC 35 | 20 . 15 Destroy Leader 40 | . . 40 Allied During Kill 1 | . . 1 Disable Machine 15 | . . 15 Destroy Structure 59 | . . 59 Lose Combat Pursuer 105 | . 15 90 Influence Decreases 383 | 20 . 363 Entered New Map 10 | . . 10 Time Decay 263 | 20 . 243 Lost Part 90 | . . 90 Lost Ally 20 | . . 20 Squads Dispatched 2 | . 1 1 Investigation . | . . . Extermination . | . . . Reinforcement 1 | . 1 . Assault 1 | . . 1 Garrison . | . . . Intercept . | . . . Searches Triggered . | . . . Construction Impeded . | . . . Haulers Reinforced . | . . . Active Scanning Responses . | . . . Cargo Convoy Interrupts . | . . . Stealth | -11 -10 -10 --------- Run | Yrd Mat Min Distress Signals 2 | . 1 1 Communications Jammed . | . . . Distress Signals . | . . . Times Spotted 53 | . 5 48 Peak Tracking Total 20 | . 4 20 Tactical Retreats 6 | . 1 5 Traps | -11 -10 -10 ------- Run | Yrd Mat Min Traps Triggered . | . . . Indirectly . | . . . Trap Hack Attempts . | . . . Triggered . | . . . Disarmed . | . . . Reprogrammed . | . . . Reused . | . . . Traps Extracted . | . . . Installed . | . . . Triggered . | . . . Machines | -11 -10 -10 ---------- Run | Yrd Mat Min Machines Disabled 1 | . . 1 Max in Single Turn 1 | . . 1 Machines Repaired . | . . . Machines Dismantled . | . . . Machines Sabotaged . | . . . Overloaded Fab Kills . | . . . Hacking | -11 -10 -10 --------- Run | Yrd Mat Min Machines Accessed 2 | . 1 1 Terminals 1 | . 1 . Fabricators . | . . . Repair Stations . | . . . Recycling Units . | . . . Scanalyzers . | . . . Garrison Access . | . . . Total Hacks 3 | . 2 1 Successful 1 | . . 1 Failed 2 | . 2 . Catastrophic . | . . . Database Lockouts . | . . . Manual 2 | . 2 . Terminals 2 | . 2 . Fabricators . | . . . Repair Stations . | . . . Recycling Units . | . . . Scanalyzers . | . . . Garrison Access . | . . . Terminal Hacks 1 | . . 1 Open Door 1 | . . 1 Fabricator Hacks . | . . . Repair Station Hacks . | . . . Recycling Unit Hacks . | . . . Scanalyzer . | . . . Garrison Access Hacks . | . . . Unauthorized Hacks . | . . . Terminals . | . . . Fabricators . | . . . Repair Stations . | . . . Recycling Units . | . . . Scanalyzers . | . . . Garrison Access . | . . . Data Cores Recovered . | . . . Used . | . . . Hacking Detections 1 | . 1 . Full Trace Events . | . . . Feedback Events . | . . . Feedback Blocked . | . . . Robot Schematics Acquired . | . . . Robots Built . | . . . Authchips . | . . . Time . | . . . Total Robot Build Rating . | . . . Part Schematics Acquired . | . . . Parts Built . | . . . Authchips . | . . . Time . | . . . Total Part Build Rating . | . . . Part Studies Acquired . | . . . Parts Repaired . | . . . Time . | . . . Parts Recycled . | . . . Recycled Matter . | . . . Retrieved Matter . | . . . Retrieved Components . | . . . Parts Scanalyzed . | . . . Part Schematics Acquired . | . . . Parts Damaged . | . . . Bothacking | -11 -10 -10 ------------ Run | Yrd Mat Min Used RIF Installer . | . . . Robots Hacked . | . . . Non-combat . | . . . Combat . | . . . Robot Hacks Applied . | . . . Relay Couplers Released . | . . . Fabnet Peak Effective % . | . . . Robots Rewired . | . . . Allies Hacked . | . . . Hacks Repelled . | . . . Allies | -11 -10 -10 -------- Run | Yrd Mat Min Total Allies 1 | . . 1 Largest Group 1 | . . 1 Highest-Rated Group 31 | . . 31 Highest-Rated Ally 31 | . . 31 Total Orders . | . . . Ally Attacks 13 | . . 13 Total Damage 147 | . . 147 Kills 1 | . . 1 Allies Corrupted . | . . . Allies Melted . | . . . Intel | -11 -10 -10 ------- Run | Yrd Mat Min Active Infowar (turns) 88 | . . 88 Seismic 88 | . . 88 Robot Analysis Total . | . . . Derelict Logs Recovered 2 | . . 2 Drone Launches . | . . . Drone Recoveries . | . . . Exploration | -11 -10 -10 ------------- Run | Yrd Mat Min Turns Passed 1009 | 168 238 603 Spaces Moved 496 | 76 140 280 Core 58 | 6 . 52 Treads 438 | 70 140 228 Legs . | . . . Wheels . | . . . Hover . | . . . Flight . | . . . Fastest Speed 50 | 50 160 50 Average Speed 151 | 151 160 147 Slowest Speed 160 | 160 160 160 Overloaded Moves . | . . . Propulsion Burnouts . | . . . Robots Hopped . | . . . Potential Cave-ins . | . . . Cave-ins Triggered . | . . . Exploration Rate (%) 31 | 5 20 68 Regions Visited 2 Branch Regions 1 Pre-discovered Areas . | . . . Known Exits Taken . | . . . Unknown Exits Taken 2 | 1 1 . Scrap Searched . | . . . Spaces Dug 10 | . . 10 Terrain Destroyed 70 | . . 70 Melee . | . . . Projectile . | . . . AOE 70 | . . 70 Terrain Rammed . | . . . Walls Destroyed . | . . . Machines Disabled . | . . . Actions | -11 -10 -10 --------- Run | Yrd Mat Min Total 646 | 105 152 389 Wait 56 | 5 . 51 Move 494 | 75 139 280 Hop . | . . . Pick Up 12 | 8 2 2 Fast Attach 8 | 5 2 1 Attach 4 | 1 . 3 Detach . | . . . Swap 5 | . 1 4 Drop 8 | . 5 3 Fire 56 | 11 1 44 Melee . | . . . Ram . | . . . Kick . | . . . Crush 3 | . 2 1 Escape Stasis . | . . . Rewire . | . . . Trap . | . . . Miscellaneous . | . . . Route ------- -11/Scrapyard -10/Materials -10/Mines (discovered 3 exits: [*Mat x2] / [*Sub]) History --------- Turn | Location | Event 11 | -11/Scrapyard | Discovered new exit (range 15) 169 | -11/Scrapyard | Entered Materials 263 | -10/Materials | Discovered new exit (range 16) 310 | -10/Materials | Build established: Mutant 407 | -10/Materials | Entered Mines 521 | -10/Mines | Discovered new exit (range 9) 564 | -10/Mines | Met a Derelict testing a Signal Generator 702 | -10/Mines | Discovered new exit (range 7) 709 | -10/Mines | Received a Rocket Launcher from a helpful Derelict 831 | -10/Mines | Found the Drone Emporium 838 | -10/Mines | Found Prototype Device 838 | -10/Mines | Identified Thief Drone Bay 864 | -10/Mines | Assembled infested the area 946 | -10/Mines | Core integrity fell below 50% 955 | -10/Mines | Core integrity fell below 20% 974 | -10/Mines | Learned 8 Materials zone layouts 977 | -10/Mines | Lost 6 parts (1p2n1u2w) 981 | -10/Mines | Destroyed 17 combat bots 1009 | -10/Mines | Learned Materials garrison access intel 1010 | -10/Mines | Discovered new exit (range 7) 1010 | -10/Mines | Destroyed by G-47 Trooper with Particle Gun Last Messages --------------- 00945_ Destroyed Cld. Ion Engine. 00945_ as-78120 destroyed. 00946_ Rocket Launcher destroyed. 00950_ Dropped Sml. Storage Unit. 00951_ System corrupted: Hvy. Assault Rifle jammed. 00953_ The unstable cave ceiling collapses. 00957_ as-92524 destroyed. 00960_ as-81783 destroyed. 00962_ The unstable cave ceiling collapses. 00967_ Acquired 6 matter. 00974_ Acquired derelict log, extracted data. Data stored: Materials zone layouts (x8). 00985_ U-05 Engineer lays Concrete. 00987_ The unstable cave ceiling collapses. 01004_ Com. Wheel destroyed. 01005_ Hvy. Assault Rifle destroyed. 01007_ The unstable cave ceiling collapses. 01009_ Acquired derelict log, extracted data. Data stored: Materials garrison access intel. 01010_ EXIT=FOUND Map ----- +----------------------------------------------------+ | | | | | | | | | | | | | | | | | | | | | | | | | | | | | ?????????????????????????????????????????????????? | | ?????????????????????????????????????????????????? | | ????????????????????????#####????????????????????? | | ???????????????????????? ????????????????????? | | ???????????????????????? < g ????????????????????? | | ???????????????????????? g ?????????????????????? | | ???????????????????????? ?????????????????????? | | ????????????????????????# #?????????????????????? | | ????????????????????????#% #?????????????????????? | | ????????????????????????# #?????????????????????? | | ????????????????????????# #?????????????????????? | | ??????????????????#######@ #?????????????????????? | | ????????????????### #?????????????????????? | | ???????????????## ##### #?????????????????????? | | ???????????????# ## #?????????????????????? | | ???????????????# # #????????????????????? | | ???????????????# #??????????????? | | ##?????????????# # #???????????????? | | #???###??????# ##???????????????? | | ##### #??????# # ##????????????????? | | # ######?## ## #?????????????????? | | " #?# #????????????????? | | ##### #### #???????????????? | | ###???# ???????????????? | | #?????# #### ???????????????? | | ###?????# #??## ????????????????? | | ##?????# ???## ?????????????????? | | ##????###????? # #?????????????????? | | #???????????? ##### ##?????????????????? | | #???????????? #????# ##??????????????????? | | #???????????? #?????###???????????????????? | | ##???????????? #???????????????????????????? | | ### #????????????? #???????????????????????????? | | ### #??####??????? ???????????????????????????? | | # ?? #????????##???????????????????????????? | | ## ####?# #?????????????????????????????????????? | +----------------------------------------------------+ Best States ------------- Heat Dissipation 25 Energy Generation 14 Energy Capacity 280 Matter Stores 300 Matter Capacity 300 Sight Range 16 Terrain Scan Density 10 Evasion (%) 50 Recoil Reduction 2 Item Schematics ----------------- None Robot Schematics ------------------ None Fabricated ------------ Nothing Repaired ---------- Nothing Studied --------- None Alien Tech Used ----------------- None Achievements -------------- None Challenges ------------ None Game ------ Seed NetworkPointMantle Manual? 0 Play Time 00:05:47 Cumulative 2064.5 hours Start 2026.01.03 @ 21:14:33 End 2026.01.03 @ 21:19:55 Sessions 1 Manual Loads 0 Difficulty Rogue Special Mode None Game No. 1333 Rogue 1329 Adventurer 4 Explorer 0 Win Type - Total 283 Types 212/13/22/10/3/1/4/10/5/3 Lore% 98 Gallery% 96 Achievement% 87 Wizard Run 0 Options --------- Layout 2 ASCII 0 Keyboard 1 Movement Vi Keybinds 0 Fullscreen 0 Font 24/Terminus Map View 59x48 Zoom Use 0% Tactical HUD 1 Map Filters NONE Filters NONE Steam 1 RUN: 001de659-b6fe-426c-a029-8fc25cadf9bc